[Event "12th WLC Weekend 2022"]
[Site "Eindhoven"]
[Date "2022.05.14"]
[Round "4.2"]
[White "Verhoeven, Robin"]
[Black "Roebers, Eline"]
[Result "0-1"]
[ECO "A00"]
[WhiteElo "1946"]
[BlackElo "2369"]
[Annotator "TA"]
[PlyCount "86"]
[EventDate "2022.05.13"]
[EventType "swiss"]
[EventCountry "NED"]
[SourceTitle "playchess.com"]
[Source "ChessBase"]
[SourceQuality "1"]
[TimeControl "5400+30"]

{[%evp 9,86,12,10,20,18,6,20,17,35,28,60,51,55,52,66,43,43,39,50,-8,19,0,12,0,7,0,4,0,0,-41,-36,-145,-130,-145,-147,-128,-129,-129,-25,-26,-27,-27,-28,-98,-106,-104,-104,-94,-58,-82,-38,-38,-28,-43,-39,-24,-42,-33,9,0,0,-128,-128,-160,-39,-293,-281,-242,-104,-266,-264,-419,-414,-585,-585,-568,-568,-526,-504]} 1. b4 {[%emt 0:00:05]} f5 {[%emt 0:00:57]} 2. Bb2 {[%emt 0:00:20]} Nf6 {[%emt 0:01:02]} 3. Nf3 {[%emt 0:00:27]} e6 {[%emt 0:00:58]} 4. a3 {[%emt 0:01:49]} Be7 {[%emt 0:00:16]} 5. c4 {[%emt 0:00:54]} O-O {[%emt 0:00:06]} 6. g3 {[%emt 0:01:35] A00: Irregular Openings.} d6 {[%emt 0:00:03]} 7. d4 {[%emt 0:00:54] Prevents e5.} Qe8 {[%emt 0:01:14]} 8. Bg2 {[%emt 0:00:19] The position is equal.} Ne4 {[%emt 0:04:13] [#]} 9. O-O $146 {[%emt 0:03:11]} ({Predecessor:} 9. Nc3 Nd7 10. Nd2 Nxc3 11. Bxc3 e5 12. O-O Bf6 13. e3 g5 14. Re1 Qg6 15. Qc2 {1-0 (27) Ganaus,H (2318)-Winiwarter,F (2175) Koeflach 2006}) 9... Bf6 {[%emt 0:03:17]} 10. Nfd2 {[%emt 0:02:37]} Nxd2 {[%emt 0:00:48]} 11. Nxd2 {[%emt 0:00:09]} e5 {[%emt 0:00:24]} 12. e3 {[%emt 0:08:02]} Nc6 {[%emt 0:03:55][%cal Re5d4]} 13. b5 {[%emt 0:03:21]} Nd8 {[%emt 0:01:28]} 14. d5 {[%emt 0:03:38]} (14. Qb3 $14) 14... g5 {[%emt 0:05:07]} 15. Nb3 {[%emt 0:05:49]} e4 {[%emt 0:02:59]} 16. Bd4 {[%emt 0:05:02]} Qg6 {[%emt 0:04:07]} 17. f3 {[%emt 0:02:37]} exf3 {[%emt 0:00:18]} 18. Qxf3 {[%emt 0:00:16]} Nf7 {[%emt 0:02:09]} 19. e4 {[%emt 0:09:29][%cal Re4f5]} Ne5 {[%emt 0:08:01]} 20. Qe2 {[%emt 0:01:24]} (20. Qc3 $15) 20... f4 $1 $17 {[%emt 0:02:49]} 21. gxf4 {[%emt 0:05:10]} Bg4 {[%emt 0:01:27]} 22. Qe3 {[%emt 0:10:00]} gxf4 {[%emt 0:00:42]} 23. Rxf4 {[%emt 0:00:36]} Nf3+ {[%emt 0:08:35]} (23... Bf3 24. Ra2 Bd1 25. Qc3 $15) ({Better is} 23... Rf7 $17 {...Bg5 is the strong threat.} 24. Bxe5 dxe5) 24. Kh1 $11 {[%emt 0:16:24]} Nxd4 {[%emt 0:02:18]} 25. Nxd4 {[%emt 0:00:17]} Qg7 {[%emt 0:01:01]} 26. Rxg4 {[%emt 0:01:09]} Qxg4 $17 {[%emt 0:00:10]} 27. Rg1 {[%emt 0:01:41]} Kh8 $1 {[%emt 0:01:02]} 28. Bh3 {[%emt 0:00:34]} Qh5 {[%emt 0:01:17] Threatens to win with ...Be5.} ({Of course not} 28... Bg5 $6 29. Qd3 Qh4 30. Ne6 $15 (30. Nf5 Qf4 $17)) 29. Ne6 {[%emt 0:03:33]} Rg8 {[%emt 0:01:29]} 30. Rf1 {[%emt 0:00:22]} Be5 {[%emt 0:00:42]} 31. Rf5 $1 {[%emt 0:05:33]} Qg6 {[%emt 0:03:30]} 32. Rg5 {[%emt 0:00:35]} Qf6 {[%emt 0:01:16] Strongly threatening ...Rxg5.} 33. Rf5 {[%emt 0:00:18]} Qe7 {[%emt 0:01:20]} (33... Qh4 $5 {[%cal Rh7h6]}) 34. Rh5 {[%emt 0:01:05] Hoping for Bf5.} Qf7 {[%emt 0:05:14]} 35. Qe2 {[%emt 0:02:31]} (35. Rf5 $11 {keeps the balance.} Qg6 36. Rg5) 35... Qg6 $1 {[%emt 0:06:02][%csl Gg8][%cal Rg6g1]} 36. Rg5 {[%emt 0:02:35] Prevents Qg1+.} Qh6 $40 {[%emt 0:03:00][%mdl 128] Black is up to no good.} (36... Qxg5 $1 $17 37. Nxg5 Rxg5) 37. Rh5 $2 {[%emt 0:03:48][%mdl 8192]} ({White has to play} 37. Qh5 $15 Qxh5 38. Rxh5) 37... Qc1+ $19 {[%emt 0:00:25]} ({And not} 37... Qg6 38. Ng5 (38. Rg5 Qh6 $15) 38... Qxg5 39. Rxg5 Rxg5 40. Bf5 $15) 38. Qf1 {[%emt 0:00:39]} Qxf1+ {[%emt 0:00:49]} (38... Qxa3 $2 39. Rxe5 $1 {[%mdl 512]} Raf8 40. Nxf8 $18) 39. Bxf1 {[%emt 0:00:04] [#]} Rg6 $1 {[%emt 0:00:44] White must now prevent ...Rag8.} 40. Ng5 {[%emt 0:00:49]} (40. Rg5 {might work better.}) 40... Rf8 {[%emt 0:00:48]} 41. Bh3 {[%emt 0:00:14]} (41. Bg2 $142 Rf2 42. Rxh7+ Kg8 43. Rh5) 41... h6 {[%emt 0:00:46] Black is clearly winning.} 42. Bf5 {[%emt 0:01:04]} Rxg5 {[%emt 0:00:20]} 43. Rxh6+ {[%emt 0:00:06]} Kg8 {[%emt 0:00:00] Weighted Error Value: White=0.41/Black=0.13 (very precise)} 0-1

[Event "12th WLC Weekend 2022"]
[Site "Eindhoven"]
[Date "2022.05.14"]
[Round "4.3"]
[White "Elgersma, Onno"]
[Black "Becx, Cesar"]
[Result "1-0"]
[ECO "C55"]
[WhiteElo "2303"]
[BlackElo "2101"]
[Annotator "TA"]
[PlyCount "93"]
[EventDate "2022.05.13"]
[EventType "swiss"]
[EventCountry "NED"]
[SourceTitle "playchess.com"]
[Source "ChessBase"]
[SourceQuality "1"]
[TimeControl "5400+30"]

{[%evp 12,93,39,35,39,30,25,25,51,44,59,53,50,56,85,80,113,4,90,71,71,69,197,64,73,59,169,166,243,232,219,242,432,408,494,335,323,270,276,280,321,322,303,302,342,332,332,325,281,281,281,276,276,276,281,256,276,256,256,252,240,158,512,511,483,477,495,495,493,474,475,465,627,608,786,754,1335,1188,29990,29991,29993,29992,29992,29993]} 1. e4 {[%emt 0:00:05]} e5 {[%emt 0:00:08]} 2. Nf3 {[%emt 0:00:11]} Nc6 {[%emt 0:00:30]} 3. Bc4 {[%emt 0:00:28]} Nf6 {[%emt 0:00:10]} 4. d3 {[%emt 0:00:03]} Be7 {[%emt 0:00:05]} 5. O-O {[%emt 0:00:14]} O-O {[%emt 0:00:06]} 6. a4 {[%emt 0:00:15][%cal Ba2a4,Ba4a5][%mdl 32]} d6 {[%emt 0:00:13]} 7. h3 {[%emt 0:00:19]} h6 {[%emt 0:00:59] C55: Two Knights: 4 d3, 4 d4 exd4 5 e5 and Max Lange Attack.} 8. a5 {[%emt 0:00:06]} a6 {[%emt 0:00:05]} 9. Nc3 {[%emt 0:00:05] [#]} Qe8 $146 {[%emt 0:10:22] White has an edge.} ({Predecessor:} 9... Nh7 10. Be3 Ng5 11. Nd2 Kh8 12. f4 exf4 13. Bxf4 f5 14. Nd5 fxe4 15. Nxe7 Qxe7 16. Bxg5 Rxf1+ 17. Qxf1 hxg5 18. Nxe4 {0-1 (42) Abdusattorov,N (2627)-Melkumyan,H (2663) Chess.com INT 2020}) 10. Re1 {[%emt 0:03:45]} Be6 {[%emt 0:04:09]} 11. Nd5 {[%emt 0:05:29]} Bd8 {[%emt 0:02:27]} 12. c3 {[%emt 0:07:54]} Nh7 {[%emt 0:09:10][%cal Oc6a5]} 13. d4 {[%emt 0:10:23]} Kh8 {[%emt 0:41:03]} 14. Be3 {[%emt 0:15:23]} (14. Bb3 $16) 14... exd4 {[%emt 0:10:24]} (14... f5 $11) 15. cxd4 {[%emt 0:01:54]} Ne7 {[%emt 0:07:00]} 16. Qb3 $36 {[%emt 0:06:36][%mdl 2048] White has the initiative. White is much more active.} Bc8 {[%emt 0:03:37]} ({Black should try} 16... c6 $14) 17. Bd2 {[%emt 0:06:03]} ({White should play} 17. Nxe7 $18 Bxe7 18. e5) 17... Nxd5 $14 {[%emt 0:02:32]} 18. Bxd5 {[%emt 0:01:45]} c6 {[%emt 0:01:56] White stays focused until the end.} (18... Nf6 $1 $14) 19. Bc4 $18 {[%emt 0:00:11]} f6 {[%emt 0:01:50]} (19... Ng5 $142 20. Nxg5 Bxg5) 20. Nh4 {[%emt 0:04:11]} Qh5 {[%emt 0:01:43]} 21. Qg3 {[%emt 0:00:59] [#] Ng6+ is the strong threat.} Ng5 $2 {[%emt 0:00:36]} (21... g5 {might work better.}) 22. f4 {[%emt 0:03:11]} Bxh3 {[%emt 0:00:27]} 23. fxg5 {[%emt 0:07:52]} (23. gxh3 Qxh4 24. Qxh4 Nf3+ 25. Kf2 Nxh4 $14) 23... fxg5 {[%emt 0:00:32]} 24. Nf5 {[%emt 0:02:10]} ({Don't take} 24. gxh3 gxh4 25. Qg2 (25. Qxd6 Rf6 $16) 25... Bg5 $18) ({Weaker is} 24. Qxd6 Bf6 $16) 24... Bxf5 {[%emt 0:00:15]} 25. exf5 {[%emt 0:00:04]} g4 {[%emt 0:00:07]} 26. Qh2 {[%emt 0:01:32]} Qxh2+ {[%emt 0:00:55]} 27. Kxh2 {[%emt 0:00:02]} d5 {[%emt 0:00:31]} 28. Bd3 {[%emt 0:00:34]} Bf6 {[%emt 0:00:58]} 29. Bc3 {[%emt 0:00:25]} h5 {[%emt 0:00:45]} 30. g3 {[%emt 0:00:16]} Kg8 {[%emt 0:00:34]} 31. Re6 {[%emt 0:00:43]} Kf7 {[%emt 0:00:11]} 32. Rae1 {[%emt 0:00:22]} Rfd8 {[%emt 0:01:33]} 33. Kg2 {[%emt 0:00:19]} Rd7 {[%emt 0:01:54]} 34. Rh1 {[%emt 0:01:36]} Rh8 {[%emt 0:00:00]} 35. Ree1 {[%emt 0:01:04]} Rdd8 {[%emt 0:00:00]} 36. Bb4 {[%emt 0:03:03]} Bxd4 $2 {[%emt 0:00:12]} (36... Rde8 $16 37. Bc5 Rxe1 38. Rxe1 Re8 39. Rxe8 Kxe8) 37. Re7+ {[%emt 0:00:07]} Kg8 {[%emt 0:00:14]} 38. Rxb7 {[%emt 0:01:06]} c5 {[%emt 0:00:39]} 39. Bc3 {[%emt 0:02:07]} Bxc3 {[%emt 0:00:01]} 40. bxc3 {[%emt 0:00:07]} c4 {[%emt 0:00:04]} 41. Bc2 {[%emt 0:01:04] [#] Black must now prevent Re1.} Rh6 {[%emt 0:00:08]} 42. Re1 {[%emt 0:00:33]} d4 {[%emt 0:01:25]} 43. cxd4 {[%emt 0:00:04] And now Ree7 would win.} Rhd6 {[%emt 0:00:13]} 44. Ree7 {[%emt 0:00:46]} Rxd4 {[%emt 0:00:08]} 45. Rxg7+ {[%emt 0:00:40] White mates.} Kh8 {[%emt 0:00:04]} 46. Rh7+ {[%emt 0:00:15]} Kg8 {[%emt 0:00:05]} 47. f6 {[%emt 0:00:26] Weighted Error Value: White=0.20 (precise) /Black=0.57} 1-0

[Event "12th WLC Weekend 2022"]
[Site "Eindhoven"]
[Date "2022.05.14"]
[Round "4.4"]
[White "Baselmans, Sam"]
[Black "Van Doren, Bas"]
[Result "1-0"]
[ECO "B23"]
[WhiteElo "2175"]
[BlackElo "2102"]
[Annotator "TA"]
[PlyCount "91"]
[EventDate "2022.05.13"]
[EventType "swiss"]
[EventCountry "NED"]
[SourceTitle "playchess.com"]
[Source "ChessBase"]
[SourceQuality "1"]
[TimeControl "5400+30"]

{[%evp 9,91,9,15,5,5,14,42,36,44,66,59,41,80,46,79,76,73,60,63,48,43,49,47,0,0,0,79,0,0,0,-4,-39,-29,-27,-19,-17,-7,0,0,-8,0,8,5,19,92,95,86,93,102,96,97,97,99,100,145,140,143,152,183,175,179,189,181,181,229,203,288,286,442,294,341,266,416,416,408,406,408,399,393,394,360,365,293,197]} 1. e4 {[%emt 0:00:05]} c5 {[%emt 0:00:06]} 2. Nc3 {[%emt 0:00:14]} e6 {[%emt 0:00:12]} 3. g3 {[%emt 0:00:05]} a6 {[%emt 0:01:42]} 4. Bg2 {[%emt 0:00:06]} b5 {[%emt 0:01:29]} 5. d3 {[%emt 0:01:24]} Bb7 {[%emt 0:00:19]} 6. Nge2 {[%emt 0:00:18] B23: Closed Sicilian: Lines without g3.} Nf6 {[%emt 0:04:34] The main line 6...Nf6 scores better than 6...b4.} 7. O-O {[%emt 0:00:15]} b4 {[%emt 0:01:46]} 8. Na4 {[%emt 0:03:06] White is slightly better.} d5 {[%emt 0:01:22]} 9. e5 {[%emt 0:01:09]} Nfd7 {[%emt 0:00:08]} 10. f4 {[%emt 0:00:12]} (10. c4 $5 {[%cal Re2f4]}) 10... Be7 {[%emt 0:02:16] [#]} 11. c3 $146 {[%emt 0:04:49]} ({Predecessor:} 11. c4 bxc3 12. bxc3 Qc7 13. d4 g6 14. g4 h5 15. f5 hxg4 16. fxe6 fxe6 17. Nf4 {1-0 (23) Venkatesh,M (2491)-Harsh,S (1843) Bhopal 2019}) 11... a5 {[%emt 0:02:14]} 12. Be3 {[%emt 0:01:53]} O-O {[%emt 0:09:25]} 13. d4 {[%emt 0:03:24]} cxd4 {[%emt 0:06:19]} 14. cxd4 {[%emt 0:01:17]} (14. Nxd4 {keeps more tension.} Nc5 15. f5 Nbd7 16. f6) 14... Nb6 {[%emt 0:03:43]} 15. Nxb6 {[%emt 0:00:29]} Qxb6 {[%emt 0:00:03]} 16. g4 {[%emt 0:00:33]} (16. f5 $14 Nd7 17. Qd2) 16... Nd7 $11 {[%emt 0:04:39]} 17. Qd2 {[%emt 0:01:34]} f6 {[%emt 0:02:00]} (17... Rfc8 $11 {keeps the balance.}) 18. Rf2 {[%emt 0:04:43]} (18. f5 $16) 18... b3 {[%emt 0:09:19]} 19. a3 {[%emt 0:11:02]} Rac8 {[%emt 0:01:17] [#] aiming for ...Rc2.} 20. Nc3 {[%emt 0:00:44]} fxe5 {[%emt 0:03:06]} 21. dxe5 {[%emt 0:08:07]} Bc5 {[%emt 0:04:32]} 22. Bxc5 {[%emt 0:00:10]} Nxc5 {[%emt 0:03:09]} 23. Qd4 {[%emt 0:02:20] Against Ne4} Nd7 {[%emt 0:02:29]} 24. Rd1 {[%emt 0:00:27]} Rc4 {[%emt 0:00:53]} 25. Qxb6 {[%emt 0:02:12]} Nxb6 {[%emt 0:01:16]} 26. Ne2 {[%emt 0:01:47][%cal Bc3e2,Be2d4,Bd4e6,Be6c5,Bc5b3,Bb3a5,Ba5b7][%mdl 32]} Rc2 {[%emt 0:05:07] [#]} (26... g5 $11) 27. Nd4 $1 $16 {[%emt 0:00:25][%csl LRb3,LRc2,LRe6] White leaves nothing to chance now.} Rxf2 {[%emt 0:00:49]} 28. Kxf2 {[%emt 0:00:05]} Rxf4+ {[%emt 0:02:28]} 29. Kg3 {[%emt 0:00:11]} Rf7 {[%emt 0:02:32]} 30. Nxe6 {[%emt 0:00:38] Threatens to win with Nd8.} Re7 {[%emt 0:00:52]} (30... Nc4 $2 31. Nd8 Ne3 32. Rd3 $18 (32. Nxf7 Nxd1 33. Nd6 Ba8 $17)) 31. Nc5 {[%emt 0:01:15] White is more active.} Bc6 {[%emt 0:03:25]} 32. Nxb3 {[%emt 0:02:05]} Rxe5 {[%emt 0:02:24]} 33. Nxa5 {[%emt 0:00:25]} Bb5 {[%emt 0:00:19]} 34. b3 {[%emt 0:05:25]} Kf7 {[%emt 0:01:04]} 35. a4 {[%emt 0:01:05][%cal Ba3a4,Ba4a5][%mdl 32]} Bd7 {[%emt 0:00:57]} 36. Rd3 {[%emt 0:00:49]} Ke6 {[%emt 0:05:28]} (36... Ke7 $142 37. Bf3 h6) 37. Nb7 $18 {[%emt 0:01:32] Strongly threatening a5.} Be8 {[%emt 0:00:54]} (37... Bc6 $142) 38. a5 {[%emt 0:01:46]} Bb5 {[%emt 0:02:32]} (38... Nc8 {might work better.} 39. Rc3 Kd7) 39. Rd4 {[%emt 0:04:56]} Nd7 {[%emt 0:01:12]} 40. h4 {[%emt 0:01:08]} Nf6 {[%emt 0:03:44]} (40... g5 $142 41. hxg5 Rxg5) 41. a6 {[%emt 0:02:27]} Bxa6 {[%emt 0:00:18]} 42. Nc5+ {[%emt 0:00:15]} Kd6 {[%emt 0:00:13]} 43. Nxa6 {[%emt 0:00:06]} Re3+ {[%emt 0:00:26]} 44. Kf2 {[%emt 0:01:12]} Rxb3 {[%emt 0:01:16]} 45. g5 {[%emt 0:00:21]} Rb2+ {[%emt 0:01:58]} 46. Kg1 {[%emt 0:00:51] Weighted Error Value: White=0.14 (very precise) /Black=0.24 (precise)} 1-0

[Event "12th WLC Weekend 2022"]
[Site "Eindhoven"]
[Date "2022.05.14"]
[Round "4.5"]
[White "Faber, Hugo"]
[Black "Baselmans, Luuk"]
[Result "1/2-1/2"]
[ECO "C08"]
[WhiteElo "2076"]
[BlackElo "2233"]
[Annotator "TA"]
[PlyCount "121"]
[EventDate "2022.05.13"]
[EventType "swiss"]
[EventCountry "NED"]
[SourceTitle "playchess.com"]
[Source "ChessBase"]
[SourceQuality "1"]
[TimeControl "5400+30"]

{[%evp 13,121,16,56,29,34,16,15,12,9,8,8,6,4,0,0,-26,-20,-19,-13,-127,0,-17,36,-59,70,59,59,65,60,75,60,12,17,15,23,0,42,7,14,0,0,0,0,7,0,0,6,0,0,0,0,0,0,0,0,-27,0,0,0,0,237,0,0,0,0,0,0,0,0,0,0,0,0,0,0,0,0,0,0,0,0,0,0,0,0,0,0,0,0,0,0,0,0,0,0,0,0,0,0,0,0,0,0,0,0,0,0,0,0,0]} 1. e4 {[%emt 0:00:17]} e6 {[%emt 0:00:10]} 2. d4 {[%emt 0:00:31]} d5 {[%emt 0:00:08]} 3. Nd2 {[%emt 0:00:25]} a6 {[%emt 0:00:25]} 4. Ngf3 {[%emt 0:01:06]} c5 {[%emt 0:00:09]} 5. exd5 {[%emt 0:01:10]} exd5 {[%emt 0:00:10]} 6. Be2 {[%emt 0:03:09]} Nf6 {[%emt 0:02:04]} 7. O-O {[%emt 0:00:54]} c4 {[%emt 0:00:17]} 8. c3 {[%emt 0:03:43] C08: French Tarrasch: 3...c5 4 exd5 exd5 sidelines.} Bd6 {[%emt 0:01:19]} 9. b3 {[%emt 0:07:34]} b5 {[%emt 0:01:27]} 10. a4 {[%emt 0:01:18] Strongly threatening axb5.} Bb7 $1 {[%emt 0:00:25]} 11. Ba3 {[%emt 0:03:05]} O-O {[%emt 0:01:55]} 12. Bxd6 {[%emt 0:02:21]} Qxd6 {[%emt 0:00:07] [#]} 13. Ne5 $146 {[%emt 0:03:20][%cal Rb3c4]} ({Predecessor:} 13. Qc2 Nbd7 14. Rfb1 Bc6 15. axb5 axb5 16. Qb2 h6 17. Bf1 Qc7 18. h3 Rfe8 19. g3 {½-½ (33) Kanovsky,D (2298)-Krupa,M (2221) Litomysl 2003}) 13... Nc6 {[%emt 0:02:32]} 14. Ndf3 {[%emt 0:05:40]} Ne4 {[%emt 0:01:37]} 15. Qc2 {[%emt 0:00:54][%cal Rb3c4]} f6 {[%emt 0:03:51]} 16. Ng4 {[%emt 0:03:07] [#]} (16. Nxc6 $11 Qxc6 17. bxc4 dxc4 18. Nh4) 16... Rfe8 {[%emt 0:04:49]} (16... b4 $1 $17 17. cxb4 Nxb4) 17. Ne3 {[%emt 0:05:09]} g6 {[%emt 0:09:50]} (17... Na5 $11) 18. Rfb1 {[%emt 0:03:19]} (18. axb5 $14 axb5 19. Rxa8 Bxa8 20. bxc4 bxc4 21. Nd2) 18... Re7 {[%emt 0:03:13]} ({Black should try} 18... Na5 $1 $15 19. bxc4 bxc4) 19. axb5 $14 {[%emt 0:03:27]} axb5 {[%emt 0:00:12]} 20. Rxa8+ {[%emt 0:00:33]} Bxa8 {[%emt 0:00:06]} 21. bxc4 {[%emt 0:00:18]} bxc4 {[%emt 0:00:18]} 22. Rb6 {[%emt 0:07:27]} (22. Nd2 $14 Nxd2 23. Qxd2) 22... Kg7 $11 {[%emt 0:03:14][%cal Oc6d4]} ({Resist} 22... Nxd4 23. Rxd6 Nxc2 24. Rd8+ (24. Nxd5 $2 Nxd6 25. Nxe7+ Kf8 $19) 24... Kf7 25. Nxc2 $16 (25. Rxa8 Nxe3 26. fxe3 Nxc3 $16)) 23. Qb2 {[%emt 0:04:25]} Qd8 {[%emt 0:03:51][%cal Oe4c3] ...Nxc3! is the strong threat.} 24. Rb5 {[%emt 0:01:54]} (24. Ra6 $5 {[%cal Re2d1]}) 24... Rd7 {[%emt 0:02:20]} (24... Nd6 $5 {[%cal Rd6b5]} 25. Rxd5 Na5 $11) 25. Bd1 {[%emt 0:02:24]} Ne7 {[%emt 0:04:20]} 26. Bc2 {[%emt 0:04:11]} Nd6 {[%emt 0:00:14]} 27. Rb6 {[%emt 0:08:34]} Rb7 {[%emt 0:00:45]} 28. Rxb7 {[%emt 0:01:44]} Bxb7 {[%emt 0:00:12]} 29. Qb4 {[%emt 0:02:44]} Qc7 {[%emt 0:03:21]} 30. h4 {[%emt 0:05:25]} Bc8 {[%emt 0:00:33]} 31. g4 {[%emt 0:02:56]} Nf7 {[%emt 0:06:19]} 32. Kg2 {[%emt 0:01:08]} Qd6 {[%emt 0:01:44]} 33. Qxd6 {[%emt 0:02:08]} Nxd6 {[%emt 0:00:06]} 34. g5 {[%emt 0:01:43]} Ndf5 {[%emt 0:02:32]} 35. Bxf5 {[%emt 0:02:15]} Bxf5 {[%emt 0:00:22][%mdl 4096] Endgame KBN-KNN} 36. Kg3 {[%emt 0:00:27]} Be4 $2 {[%emt 0:04:09] [#]} (36... h5 $11 {and Black stays safe.}) 37. Nd2 $2 {[%emt 0:04:07]} (37. gxf6+ $1 $18 Kxf6 38. Ng5) 37... Bd3 {[%emt 0:00:26] The position is equal.} 38. Kf4 {[%emt 0:00:28] Black must now prevent Ng4.} h5 {[%emt 0:01:12] Inhibits Ng4.} 39. Nf3 {[%emt 0:01:17]} Bf5 {[%emt 0:02:11]} 40. Ne1 {[%emt 0:01:22]} Kf7 {[%emt 0:00:42]} 41. gxf6 {[%emt 0:01:09]} Kxf6 {[%emt 0:00:28]} 42. Nf3 {[%emt 0:00:14]} Be6 {[%emt 0:01:49]} 43. Ne5 {[%emt 0:01:07]} Nc8 {[%emt 0:00:47]} 44. Nc6 {[%emt 0:00:34]} Nb6 {[%emt 0:00:48]} 45. Nb4 {[%emt 0:00:22]} Bf7 {[%emt 0:00:17]} 46. Kg3 {[%emt 0:00:20]} Bg8 {[%emt 0:04:43]} 47. Kf4 {[%emt 0:00:15]} Be6 {[%emt 0:00:07]} 48. Kg3 {[%emt 0:00:12]} Na4 {[%emt 0:02:32]} 49. Nexd5+ {[%emt 0:01:11]} Bxd5 {[%emt 0:00:08]} 50. Nxd5+ {[%emt 0:00:04] KN-KN} Ke6 {[%emt 0:00:11]} 51. Ne3 {[%emt 0:01:55]} Nxc3 {[%emt 0:00:19]} 52. Nxc4 {[%emt 0:00:17]} Ne2+ {[%emt 0:00:14]} 53. Kf3 {[%emt 0:00:15]} Nxd4+ {[%emt 0:00:07]} 54. Kf4 {[%emt 0:00:08]} Kf6 {[%emt 0:00:13]} 55. Nd2 {[%emt 0:00:30]} Ne6+ {[%emt 0:00:59]} 56. Ke4 {[%emt 0:00:17]} Nc5+ {[%emt 0:00:22]} 57. Kf4 {[%emt 0:00:47]} Nd3+ {[%emt 0:00:19]} 58. Ke3 {[%emt 0:00:12]} Ne1 {[%emt 0:00:18]} 59. Kf4 {[%emt 0:00:16]} Nd3+ {[%emt 0:01:14]} 60. Ke3 {[%emt 0:00:05]} Ne5 {[%emt 0:01:02]} 61. Kf4 {[%emt 0:00:17] Weighted Error Value: White=0.18 (very precise) /Black=0.22 (precise)} 1/2-1/2

[Event "12th WLC Weekend 2022"]
[Site "Eindhoven"]
[Date "2022.05.14"]
[Round "4.6"]
[White "Klapwijk, Bram"]
[Black "Albers, Sasa"]
[Result "1-0"]
[ECO "B10"]
[WhiteElo "2245"]
[BlackElo "2117"]
[Annotator "TA"]
[PlyCount "51"]
[EventDate "2022.05.13"]
[EventType "swiss"]
[EventCountry "NED"]
[SourceTitle "playchess.com"]
[Source "ChessBase"]
[SourceQuality "1"]
[TimeControl "5400+30"]

{[%evp 9,50,-49,-42,-47,-40,-62,-52,-59,-3,-35,-20,-39,-34,-51,-52,-36,-43,-35,-28,-31,-26,-65,0,0,0,0,236,40,490,489,335,-40,401,408,397,383,789,776,29994,29995,29998,29999,29999]} 1. e4 {[%emt 0:00:48]} c6 {[%emt 0:00:05]} 2. Bc4 {[%emt 0:00:17]} d5 {[%emt 0:00:13]} 3. Bb3 {[%emt 0:00:04]} dxe4 {[%emt 0:03:38]} 4. Qh5 {[%emt 0:00:05]} g6 {[%emt 0:07:47]} 5. Qh4 {[%emt 0:00:05]} Nf6 {[%emt 0:01:50][%cal Og6g5]} 6. Nc3 {[%emt 0:00:05] B10: Caro-Kann: 2 d3 and 2 c4.} Bg7 {[%emt 0:01:16]} 7. f3 {[%emt 0:07:32]} exf3 $1 {[%emt 0:03:16]} 8. Nxf3 {[%emt 0:00:04] Black is slightly better.} Qd6 {[%emt 0:21:21]} (8... O-O $15) 9. d4 {[%emt 0:08:14]} Be6 {[%emt 0:00:28]} 10. Bf4 {[%emt 0:06:00]} Qd7 {[%emt 0:00:01] [#]} 11. O-O-O $146 {[%emt 0:25:46]} ({Predecessor:} 11. Ne5 Qc8 12. Bxe6 Qxe6 13. O-O O-O 14. Rae1 Qc8 15. Nf3 Re8 16. Be5 Nbd7 17. Ng5 {0-1 (23) Kjaras,A (1840)-Perez,D (2112) Villaguay 2017}) 11... Bxb3 $1 {[%emt 0:01:52]} 12. Ne5 {[%emt 0:01:09] [#]} Qd8 {[%emt 0:25:38]} 13. axb3 {[%emt 0:00:07]} O-O {[%emt 0:01:55]} 14. Rhf1 {[%emt 0:05:07]} Nbd7 {[%emt 0:07:43]} 15. Rf3 {[%emt 0:01:06]} Re8 {[%emt 0:03:59]} (15... Nh5 $15 16. Be3 e6) 16. Bh6 $36 {[%emt 0:05:04][%mdl 2048] White fights for an advantage.} Qa5 {[%emt 0:06:32]} 17. Re1 {[%emt 0:26:41] Strongly threatening Bxg7.} Nf8 $2 {[%emt 0:04:50]} (17... Nxe5 $11 18. dxe5 Nd5) 18. g4 $2 {[%emt 0:02:27]} (18. Bxg7 $18 Kxg7 19. b4 (19. Rh3 Rad8 $15) 19... Qa1+ 20. Kd2) 18... g5 $2 {[%emt 0:03:20][%mdl 8192]} ({Black should play} 18... Bxh6+ $14 19. Qxh6 Rad8) 19. Qxg5 $18 {[%emt 0:02:57][%csl Gh6][%cal Rg5g7]} Ne6 {[%emt 0:00:40]} 20. Qe3 {[%emt 0:04:07]} (20. Qh4 $18 Nxd4 21. Rff1 (21. Qg5 Ne6 $16)) 20... Nxd4 $2 {[%emt 0:00:37][%mdl 8192]} 21. Bxg7 {[%emt 0:02:38]} (21. Qg5 Ne6 22. Qh4 Bxh6+ 23. Qxh6 Qa1+ 24. Nb1 Qa5 $18) 21... Nxf3 {[%emt 0:00:03]} 22. Qxf3 {[%emt 0:00:21] Really sharp!} Kxg7 $2 {[%emt 0:00:18] [#]} (22... Qa1+ 23. Kd2 Rad8+ 24. Nd3 Qa5) 23. g5 $1 {[%emt 0:00:22]} Rg8 {[%emt 0:03:46]} 24. gxf6+ {[%emt 0:00:11] White mates.} exf6 {[%emt 0:00:02]} 25. Qg4+ {[%emt 0:00:17][%mdl 64] Deflection} Kh8 {[%emt 0:00:18]} 26. Nxf7# {[%emt 0:00:03] Weighted Error Value: White=0.68/Black=1.12} 1-0